Cogmind - Beta 11 @@@ ROGUE MODE // 2022.03.27 @ 13:34:10 Player: RNGesus Result: Destroyed by G-47 Trooper with Particle Gun Performance ------------- Evolutions (3) 1500 Regions Visited (8) 1600 Robots Destroyed (235) 1175 Value Destroyed (7995) 7995 Prototype IDs (13) 260 Alien Tech Used (0) 0 Bonus (2331) 2331 TOTAL SCORE: 14861 Bonus ------- High Alert Combat Kills 1572 Follower Combat Kills 80 Entered Garrisons 200 Used RIF Installer 500 Friendly Fire -21 Cogmind --------- Core Integrity 0/700 Matter 288/300 Energy 150/150 System Corruption 3% Temperature Cool (27) Movement Walking (263) Ox2 Location -7/Factory Parts ------- > --- POWER (1) -------- Micro Nuclear Core > --- PROPULSION (4) --- Aluminum Leg Aluminum Leg Improved Titanium Leg > --- UTILITY (6) ------ Coolant Injector Huge Storage Unit Machine Analyzer Improved Signal Interpreter Relay Coupler [Sentry] (5) Corruption Screen > --- WEAPON (2) ------- Improved Spread Laser > --- INVENTORY (25) --- Advanced Heat Sink Huge Storage Unit Structural Scanner Active Sensor Suite Particle Charger Weapon Cycler Layered Light Armor Plating Layered Light Armor Plating Hacking Suite Relay Coupler [Specialist] (24) Relay Coupler [Hunter] (13) Heavy EM Shotgun High-powered Field Laser Remote Datajack Remote Datajack Great Axe Peak State ------------ > --- POWER ------------ Enhanced Nuclear Core > --- PROPULSION ------- Improved Carbon-fiber Leg Improved Carbon-fiber Leg Improved Carbon-fiber Leg Wheel > --- UTILITY ---------- Improved Cooling System Huge Storage Unit Machine Analyzer Advanced Targeting Computer Layered Light Armor Plating Corruption Screen > --- WEAPON ----------- Advanced Beam Rifle High-powered Field Laser > --- INVENTORY -------- Light Nuclear Core Micro Nuclear Core Advanced Heat Sink Improved Cooling System Huge Storage Unit Structural Scanner Improved Signal Interpreter Active Sensor Suite Particle Charger Weapon Cycler Layered Light Armor Plating Layered Light Armor Plating Hacking Suite Relay Coupler [Swarmer] Relay Coupler [Specialist] Heavy EM Shotgun Advanced Beam Rifle High-powered Field Laser Improved Spread Laser Improved Grenade Launcher Remote Datajack Remote Datajack Great Axe [Rating: 56] Favorites ----------- Power Light Nuclear Core Engine Improved Ion Engine Power Core Light Nuclear Core Propulsion Light Treads Treads Light Treads Leg Aluminum Leg Wheel Compact Wheel Utility Huge Storage Unit Device Improved Cooling System Storage Huge Storage Unit Processor Advanced Targeting Computer Hackware Relay Coupler [NC] Protection Improved Medium Armor Plating Weapon Advanced Beam Rifle Energy Gun Advanced Beam Rifle Energy Cannon Ion Cannon Ballistic Gun Improved Assault Rifle Launcher Improved Grenade Launcher Special Weapon Remote Datajack Slashing Weapon Axe Special Melee Weapon Datajack Build | -11 -10 -10 -9 -9 -8 -8 -8 -7 ------- Run | Scr Mat Min Mat Min Mat Gar Mat Fac Slots Evolved 6 | . . . 2 . 2 . . 2 Power . | . . . . . . . . . Propulsion 2 | . . . 1 . . . . 1 Utility 4 | . . . 1 . 2 . . 1 Weapon . | . . . . . . . . . Parts Attached 178 | 7 6 11 24 2 38 15 6 69 Power 14 | 2 . 2 1 . 2 2 1 4 Engine 6 | 2 . 2 1 . 1 . . . Core 8 | . . . . . 1 2 1 4 Reactor . | . . . . . . . . . Propulsion 53 | 2 1 3 6 . 11 6 2 22 Treads 32 | 2 1 2 5 . 11 5 2 4 Leg 13 | . . . . . . . . 13 Wheel 8 | . . 1 1 . . 1 . 5 Hover . | . . . . . . . . . Flight . | . . . . . . . . . Utility 44 | 1 2 3 8 1 9 2 3 15 Device 11 | . 1 . 1 . 2 . 1 6 Storage 6 | 1 1 1 . . 1 . 1 1 Processor 8 | . . . 2 . 3 . . 3 Hackware 7 | . . . 3 . . . . 4 Protection 12 | . . 2 2 1 3 2 1 1 Artifact . | . . . . . . . . . Weapon 67 | 2 3 3 9 1 16 5 . 28 Energy Gun 32 | 1 1 1 2 . 10 3 . 14 Energy Cannon 2 | . . . . 1 . . . 1 Ballistic Gun 10 | 1 1 1 5 . 2 . . . Ballistic Cannon . | . . . . . . . . . Launcher 12 | . 1 1 2 . 2 . . 6 Special Weapon 3 | . . . . . . . . 3 Impact Weapon . | . . . . . . . . . Slashing Weapon 4 | . . . . . 2 1 . 1 Piercing Weapon . | . . . . . . . . . Special Melee Weapon 4 | . . . . . . 1 . 3 Unidentified Prototypes 8 | . . . 2 . 4 . . 2 Parts Lost 54 | . 2 5 5 1 5 4 4 28 Power 9 | . . 2 1 . 2 1 1 2 Propulsion 26 | . . 1 2 . 2 2 1 18 Utility 12 | . 1 1 2 1 1 . 2 4 Weapon 7 | . 1 1 . . . 1 . 4 Highest Loss Streak 6 | . 2 3 2 1 1 2 4 6 To Critical Strikes 1 | . . . . . 1 . . . Average Slot Usage (%) 95 | . 96 83 95 99 97 99 99 91 Engine 4 | . 14 12 10 11 3 . . . Core 4 | . . . . . 5 9 8 6 Treads 23 | . 28 18 27 33 26 26 27 12 Leg 2 | . . . . . . . . 9 Wheel 1 | . . 9 4 . . . . 2 Device 8 | . 10 . . . 9 18 12 9 Storage 9 | . 14 14 11 11 8 9 9 7 Processor 11 | . . . 11 11 15 9 9 16 Hackware 1 | . . . . . . . . 6 Protection 7 | . . 5 8 10 9 9 14 4 Energy Gun 10 | . 14 8 2 . 13 17 18 10 Ballistic Gun 6 | . 13 13 19 21 4 . . . Naked Turns . | . . . . . . . . . Heaviest Build 105 | 14 30 89 100 101 105 103 102 105 Greatest Support 91 | 40 40 40 67 67 67 60 63 91 Greatest Overweight (x) 28 | 4 . 5 9 1 1 10 1 28 Average Overweight (x) 2 | 1 . 3 3 1 . 1 1 3 Largest Inventory Capacity 25 | 8 15 25 25 25 25 25 25 25 Average Capacity 23 | 7 13 21 25 25 24 25 25 25 Most Carried 25 | 4 8 11 23 25 25 25 25 25 Average Carried 20 | 2 5 8 16 24 23 24 23 23 Final Capacity 25 | 8 15 25 25 25 25 25 25 25 Final Carried 25 | 4 8 11 23 25 25 25 25 18 Class Distribution -------------------- 56% | Mutant 40% | Scavenger-Mutant 3% | Bothacker-Mutant Dominant Class ---------------- Mutant | -10/Materials Mutant | -10/Mines Mutant | -9/Materials Mutant | -9/Mines Scavenger-Mutant | -8/Materials Scavenger-Mutant | -8/Garrison Mutant | -8/Materials Scavenger-Mutant | -7/Factory Resources | -11 -10 -10 -9 -9 -8 -8 -8 -7 ----------- Run | Scr Mat Min Mat Min Mat Gar Mat Fac Matter Collected 3319 | 184 265 273 550 188 648 166 35 1010 Remotely . | . . . . . . . . . Salvage Created 9372 | 12 537 260 1137 423 2634 1116 429 2824 Parts 492 | 4 27 9 81 41 136 60 10 124 Haulers Intercepted 13 | . 1 . 3 . 5 . 2 2 Recyclers Shooed 4 | . . 3 . . . . . 1 Parts Field Recycled . | . . . . . . . . . Retrieved Matter . | . . . . . . . . . Parts Self-Destructed . | . . . . . . . . . Prevented . | . . . . . . . . . Kills | -11 -10 -10 -9 -9 -8 -8 -8 -7 ------- Run | Scr Mat Min Mat Min Mat Gar Mat Fac Combat Hostiles Destroyed 186 | . 14 4 27 17 34 25 8 57 Guns 152 | . 12 2 20 17 32 25 6 38 AOE 27 | . 2 2 7 . . . . 16 Classes Destroyed 17 | 1 5 1 2 . 7 . . 1 Worker 11 | . 1 1 2 . 1 . . 6 Builder 10 | . . . . . 7 . . 3 Tunneler 2 | 1 . . . . 1 . . . Hauler 13 | . 1 . 3 . 5 . 2 2 Recycler 9 | . . 1 2 . 4 . . 2 Mechanic 3 | . . . . . 1 . . 2 Operator 3 | . 1 . 1 . 1 . . . Watcher 4 | . . . 1 . 1 . . 2 Swarmer 41 | . 5 . 11 11 . 4 2 8 Grunt 95 | . 9 4 9 6 21 9 5 32 Brawler 7 | . . . . . 1 4 . 2 Duelist 5 | . . . . . 1 . . 4 Sentry 23 | . . . 7 . 7 4 1 4 Specialist 5 | . . . . . 2 3 . . Hunter 2 | . . . . . 1 1 . . Programmer 7 | . . . . . . . . 7 Heavy 1 | . . . . . 1 . . . Best Kill Streak 8 | 1 3 2 5 3 8 4 3 6 Combat Bots Only 5 | . 3 2 5 3 5 4 3 4 Max Kills in Single Turn 4 | 1 1 1 3 2 2 2 1 4 Gunslinging 1 | . . . . 1 1 1 . 1 Exploded 3 | . 1 1 3 . . . . 3 Melee . | . . . . . . . . . Uniques/NPCs Destroyed . | . . . . . . . . . Combat | -11 -10 -10 -9 -9 -8 -8 -8 -7 -------- Run | Scr Mat Min Mat Min Mat Gar Mat Fac Damage Taken 10266 | . 569 491 810 443 2148 1126 748 3931 Core 1625 | . 115 110 130 89 276 137 68 700 Absorbed by Shields . | . . . . . . . . . Regen/Repaired (Parts) 528 | . . . . . 528 . . . Core Remaining (%) 41 | 100 . 10 . 45 . . 12 . Volleys Fired 613 | 5 45 24 69 30 149 53 35 203 Largest 2 | 2 2 2 2 2 2 2 2 2 Hottest 144 | 70 70 70 79 60 144 136 122 131 Shots Fired 1090 | 10 85 45 134 58 287 106 70 295 Gun 1048 | 10 82 41 130 56 286 106 70 267 Cannon 2 | . . . . 2 . . . . Launcher 27 | . 3 4 4 . 1 . . 15 Special 13 | . . . . . . . . 13 Kinetic 315 | 5 42 21 97 56 94 . . . Thermal 722 | 5 40 20 33 2 184 106 70 262 Explosive 27 | . 3 4 4 . 1 . . 15 Electromagnetic 13 | . . . . . 8 . . 5 Robot Hit Streak 24 | 3 11 10 22 10 24 11 12 17 Robot Miss Streak 7 | 2 4 3 3 2 4 4 4 7 Penetration Max . | . . . . . . . . . Secondary Targets 19 | . 4 . 1 5 2 5 1 1 Max Gunslinging Chain 1 | . 1 . 1 1 1 1 1 1 Shots Hit Robots 805 | 6 58 31 93 40 222 78 51 226 Core Hits 435 | 2 30 17 52 23 94 35 12 170 Critical Kills 3 | . . . 2 . 1 . . . Critical Parts Destroyed 4 | . . 1 . 1 2 . . . Critical Strikes 62 | 1 5 3 4 1 17 3 7 21 Burn 55 | 1 5 2 2 . 14 3 7 21 Destroy 7 | . . 1 2 1 3 . . . Melee Attacks 19 | . . . . . 3 7 . 9 Impact . | . . . . . . . . . Slashing 7 | . . . . . 3 3 . 1 Piercing . | . . . . . . . . . Sneak Attacks 12 | . . . . . . 4 . 8 Combat Hostiles 4 | . . . . . . 4 . . Follow-up Attacks . | . . . . . . . . . Damage Inflicted 17233 | 72 868 543 1840 635 3906 1549 1040 6780 Guns 14199 | 71 709 384 1363 635 3882 1549 1040 4566 Cannons . | . . . . . . . . . Explosions 3033 | . 159 159 477 . 24 . . 2214 Melee . | . . . . . . . . . Ramming 1 | 1 . . . . . . . . Kinetic 3233 | 21 336 195 980 635 1066 . . . Thermal 11312 | 50 373 189 383 . 2684 1549 1040 5044 Explosive 2466 | . 159 159 477 . 24 . . 1647 Electromagnetic 221 | . . . . . 132 . . 89 Impact . | . . . . . . . . . Slashing . | . . . . . . . . . Piercing . | . . . . . . . . . Highest Corruption 4 | . 3 3 . . . 4 4 3 Average Corruption 3 | . 2 3 . . . 4 4 3 Corruption Purged . | . . . . . . . . . Corruption Blocked 5 | . . . . . . . . 5 Effects 122 | . 5 19 . . . 8 16 74 Message Errors 31 | . . 4 . . . 2 3 22 Matter Fused 25 | . . 5 . . . 2 . 18 Heat Flow Errors 12 | . 1 4 . . . . 3 4 Energy Discharges 18 | . 3 4 . . . . 3 8 Parts Rejected 2 | . 1 . . . . . . 1 Data Loss (minor) 21 | . . 1 . . . 3 4 13 Data Loss (major) 4 | . . . . . . 1 1 2 Misfires 2 | . . 1 . . . . 1 . Alerts 3 | . . . . . . . . 3 Weapon Failures 4 | . . . . . . . 1 3 Overload Shots . | . . . . . . . . . Overflow Damage 102 | . 18 . 7 . . . . 77 Projectiles . | . . . . . . . . . Explosions 102 | . 18 . 7 . . . . 77 Melee . | . . . . . . . . . Knockbacks . | . . . . . . . . . Impact . | . . . . . . . . . Kinetic . | . . . . . . . . . Secondary . | . . . . . . . . . Self-Inflicted Damage 346 | . . . 39 . . 263 . 44 Shots 4 | . . . 1 . . 2 . 1 Rammed 1 | 1 . . . . . . . . Targets Rammed 1 | 1 . . . . . . . . Kicked . | . . . . . . . . . Crushed . | . . . . . . . . . Highest Temperature 431 | 18 141 232 165 40 91 21 279 431 Average Temperature 58 | 9 45 46 37 21 37 6 110 79 Received Heat Transfer 3828 | . 243 78 243 132 918 315 405 1494 Effects 3 | . . . . . . . 1 2 Shutdowns 1 | . . . . . . . . 1 Energy Bleed 1 | . . . . . . . 1 . Matter Decay 1 | . . . . . . . . 1 Siege Activations . | . . . . . . . . . Robots Corrupted . | . . . . . . . . . Combat Hostiles . | . . . . . . . . . Parts Fried 1 | . . . . . 1 . . . Impact Corruptions . | . . . . . . . . . Robots Melted 7 | . . . . . 2 . 2 3 Combat Hostiles 7 | . . . . . 2 . 2 3 Parts Melted 60 | . 2 . . . 21 7 9 21 Heat Transferred 23776 | 222 1480 596 1124 . 6327 3034 2442 8551 Parts Sabotaged . | . . . . . . . . . Parts Stolen . | . . . . . . . . . Parts Stripped . | . . . . . . . . . Power Chain Reactions . | . . . . . . . . . Missiles Intercepted . | . . . . . . . . . Alert | -11 -10 -10 -9 -9 -8 -8 -8 -7 ------- Run | Scr Mat Min Mat Min Mat Gar Mat Fac Peak Influence 1484 | 5 194 125 508 550 555 1484 789 1143 Initial 723 | . 3 69 19 150 53 330 723 323 Average 415 | 1 103 42 349 299 279 905 728 469 Maximum Alert Level 4 | . . . 2 2 2 4 3 4 Low Security (%) 31 | 100 100 100 5 24 46 . . 19 Level 1 25 | . . . 55 40 20 9 . 36 Level 2 23 | . . . 38 35 33 17 11 21 Level 3 14 | . . . . . . 42 88 17 Level 4 5 | . . . . . . 30 . 4 Level 5 . | . . . . . . . . . High Security . | . . . . . . . . . Max Security . | . . . . . . . . . Squads Dispatched 35 | . 3 . 4 1 4 . 2 21 Investigation 6 | . 2 . 1 1 1 . . 1 Extermination 8 | . . . . . . . . 8 Reinforcement 14 | . 1 . 3 . 3 . 2 5 Assault 4 | . . . . . . . . 4 Garrison 3 | . . . . . . . . 3 Intercept . | . . . . . . . . . Searches Triggered . | . . . . . . . . . Construction Impeded 3 | . . . . . . . . 3 Haulers Reinforced 1 | . . . . . . . . 1 Active Scanning Responses . | . . . . . . . . . Cargo Convoy Interrupts . | . . . . . . . . . Stealth | -11 -10 -10 -9 -9 -8 -8 -8 -7 --------- Run | Scr Mat Min Mat Min Mat Gar Mat Fac Distress Signals 11 | . 2 . 4 1 2 . 1 1 Communications Jammed . | . . . . . . . . . Distress Signals . | . . . . . . . . . Times Spotted 266 | . 25 6 39 21 48 28 14 85 Peak Tracking Total 6 | . 4 2 6 4 6 6 4 6 Tactical Retreats 10 | . 1 . . 2 1 2 . 4 Traps | -11 -10 -10 -9 -9 -8 -8 -8 -7 ------- Run | Scr Mat Min Mat Min Mat Gar Mat Fac Traps Triggered 10 | . 3 . . . 1 4 . 2 Indirectly . | . . . . . . . . . Trap Hack Attempts 3 | . . . . . . 3 . . Triggered . | . . . . . . . . . Disarmed 1 | . . . . . . 1 . . Reprogrammed . | . . . . . . . . . Reused . | . . . . . . . . . Traps Extracted . | . . . . . . . . . Installed . | . . . . . . . . . Triggered . | . . . . . . . . . Machines | -11 -10 -10 -9 -9 -8 -8 -8 -7 ---------- Run | Scr Mat Min Mat Min Mat Gar Mat Fac Machines Disabled 12 | . . 4 . 1 1 5 . 1 Max in Single Turn 4 | . . 4 . 1 1 2 . 1 Garrison Access 1 | . . . . . . . . 1 Garrison Relay 1 | . . . . . . 1 . . Phase Generator 1 | . . . . . . 1 . . Machines Sabotaged . | . . . . . . . . . Garrisons Compromised . | . . . . . . . . . Overloaded Fab Kills . | . . . . . . . . . Hacking | -11 -10 -10 -9 -9 -8 -8 -8 -7 --------- Run | Scr Mat Min Mat Min Mat Gar Mat Fac Machines Accessed 15 | . 2 . 2 1 4 . 1 5 Terminals 9 | . 2 . 2 . 2 . 1 2 Fabricators . | . . . . . . . . . Repair Stations 1 | . . . . . 1 . . . Recycling Units . | . . . . . . . . . Scanalyzers 1 | . . . . . . . . 1 Garrison Access 3 | . . . . . 1 . . 2 Total Hacks 41 | . 7 . 9 1 10 . 5 9 Successful 20 | . 2 . 3 1 6 . 2 6 Failed 21 | . 5 . 6 . 4 . 3 3 Catastrophic 1 | . . . . . 1 . . . Database Lockouts . | . . . . . . . . . Manual 16 | . 6 . 5 . 2 . 1 2 Terminals 31 | . 7 . 9 . 7 . 5 3 Fabricators . | . . . . . . . . . Repair Stations 2 | . . . . . 2 . . . Recycling Units . | . . . . . . . . . Scanalyzers 2 | . . . . . . . . 2 Garrison Access 5 | . . . . . 1 . . 4 Terminal Hacks 10 | . 1 . 3 1 3 . 2 . Open Door 1 | . . . . 1 . . . . Level Access Points 1 | . . . . . . . 1 . Branch Access Points 1 | . . . . . . . 1 . Alert Level 1 | . . . . . 1 . . . Locate Traps 1 | . . . 1 . . . . . Hauler Manifests 2 | . . . 1 . 1 . . . Registered Components 3 | . 1 . 1 . 1 . . . Fabricator Hacks . | . . . . . . . . . Repair Station Hacks 2 | . . . . . 2 . . . Scan Component 1 | . . . . . 1 . . . Repair 1 | . . . . . 1 . . . Recycling Unit Hacks . | . . . . . . . . . Scanalyzer 2 | . . . . . . . . 2 Insert Component 2 | . . . . . . . . 2 Garrison Access Hacks 4 | . . . . . 1 . . 3 Unlock Access 1 | . . . . . 1 . . . Seal Access 1 | . . . . . . . . 1 Coupler Status 2 | . . . . . . . . 2 Unauthorized Hacks 2 | . 1 . . . . . . 1 Terminals 1 | . 1 . . . . . . . Operators 1 | . 1 . . . . . . . Fabricators . | . . . . . . . . . Repair Stations . | . . . . . . . . . Recycling Units . | . . . . . . . . . Scanalyzers . | . . . . . . . . . Garrison Access 1 | . . . . . . . . 1 Eject 1 | . . . . . . . . 1 Data Cores Recovered 1 | . . . . . 1 . . . Used . | . . . . . . . . . Hacking Detections 10 | . 2 . 2 . 3 . . 3 Full Trace Events 2 | . 1 . 1 . . . . . Feedback Events . | . . . . . . . . . Feedback Blocked . | . . . . . . . . . Robot Schematics Acquired . | . . . . . . . . . Robots Built . | . . . . . . . . . Authchips . | . . . . . . . . . Time . | . . . . . . . . . Total Robot Build Rating . | . . . . . . . . . Part Schematics Acquired . | . . . . . . . . . Parts Built . | . . . . . . . . . Authchips . | . . . . . . . . . Time . | . . . . . . . . . Total Part Build Rating . | . . . . . . . . . Parts Repaired 1 | . . . . . 1 . . . Time 26 | . . . . . 26 . . . Parts Recycled . | . . . . . . . . . Recycled Matter . | . . . . . . . . . Retrieved Matter . | . . . . . . . . . Retrieved Components . | . . . . . . . . . Parts Scanalyzed . | . . . . . . . . . Part Schematics Acquired . | . . . . . . . . . Parts Damaged . | . . . . . . . . . Bothacking | -11 -10 -10 -9 -9 -8 -8 -8 -7 ------------ Run | Scr Mat Min Mat Min Mat Gar Mat Fac Used RIF Installer 1 | . . . . . . 1 . . Robots Hacked 10 | . . . . . . . . 10 Non-combat 7 | . . . . . . . . 7 Combat 3 | . . . . . . . . 3 Robot Hacks Applied 11 | . . . . . . . . 11 generate_echo 1 | . . . . . . . . 1 map_walls 2 | . . . . . . . . 2 drop_inventory 2 | . . . . . . . . 2 locate_stockpiles 1 | . . . . . . . . 1 deconstruct_bot 1 | . . . . . . . . 1 map_route 1 | . . . . . . . . 1 overwrite_iff 1 | . . . . . . . . 1 formatsys_high 2 | . . . . . . . . 2 Relay Couplers Released 9 | . . . . . . 5 . 4 Ejected 4 | . . . . . . . . 4 Machine Destruction 5 | . . . . . . 5 . . Attached 4 | . . . . . . . . 4 Fabnet Peak Effective % . | . . . . . . . . . Robots Rewired . | . . . . . . . . . Allies Hacked . | . . . . . . . . . Hacks Repelled . | . . . . . . . . . Allies | -11 -10 -10 -9 -9 -8 -8 -8 -7 -------- Run | Scr Mat Min Mat Min Mat Gar Mat Fac Total Allies 3 | . . . . . . . . 3 Largest Group 2 | . . . . . . . . 2 Highest-Rated Group 32 | . . . . . . . . 32 Highest-Rated Ally 32 | . . . . . . . . 32 Total Orders . | . . . . . . . . . Ally Attacks 16 | . . . . . . . . 16 Total Damage 319 | . . . . . . . . 319 Kills 3 | . . . . . . . . 3 Allies Corrupted . | . . . . . . . . . Allies Melted . | . . . . . . . . . Intel | -11 -10 -10 -9 -9 -8 -8 -8 -7 ------- Run | Scr Mat Min Mat Min Mat Gar Mat Fac Robot Analysis Total . | . . . . . . . . . Derelict Logs Recovered 2 | . . 2 . . . . . . Drone Launches . | . . . . . . . . . Drone Recoveries . | . . . . . . . . . Exploration | -11 -10 -10 -9 -9 -8 -8 -8 -7 ------------- Run | Scr Mat Min Mat Min Mat Gar Mat Fac Turns Passed 15332 | 105 1030 986 1696 1522 3233 2112 686 3962 Spaces Moved 5520 | 46 552 452 669 265 1122 769 226 1419 Core 22 | 21 . . . . . . . 1 Treads 4036 | 25 552 125 406 265 1122 758 226 557 Legs 180 | . . . . . . . . 180 Wheels 1282 | . . 327 263 . . 11 . 681 Hover . | . . . . . . . . . Flight . | . . . . . . . . . Fastest Speed 50 | 50 160 160 175 230 166 230 240 175 Average Speed 220 | 166 160 170 213 230 237 243 241 233 Slowest Speed 1450 | 250 160 175 312 230 246 246 243 1450 Overloaded Moves . | . . . . . . . . . Propulsion Burnouts . | . . . . . . . . . Robots Hopped . | . . . . . . . . . Cave-ins Triggered . | . . . . . . . . . Exploration Rate (%) 58 | 4 91 70 66 54 81 97 19 48 Regions Visited 8 Branch Regions 2 Pre-discovered Areas 2 | . . 2 . . . . . . Known Exits Taken 2 | . . . . . 1 . 1 . Unknown Exits Taken 5 | 1 1 1 1 1 . . . . Scrap Searched 1 | . . 1 . . . . . . Spaces Dug 35 | . . . 6 . 15 . . 14 Terrain Destroyed 204 | . 13 5 17 . 15 63 . 91 Melee 4 | . . . . . 3 . . 1 Projectile . | . . . . . . . . . AOE 200 | . 13 5 17 . 12 63 . 90 Terrain Rammed . | . . . . . . . . . Walls Destroyed . | . . . . . . . . . Machines Disabled . | . . . . . . . . . Actions | -11 -10 -10 -9 -9 -8 -8 -8 -7 --------- Run | Scr Mat Min Mat Min Mat Gar Mat Fac Total 7600 | 61 612 619 803 1121 1416 900 298 1770 Wait 1056 | . 3 126 11 818 19 16 26 37 Move 5512 | 46 551 451 668 264 1121 767 225 1419 Hop . | . . . . . . . . . Pick Up 111 | 3 6 6 17 5 46 9 4 15 Fast Attach 50 | 6 1 3 9 . 11 1 . 19 Attach 41 | . 2 4 6 1 6 4 4 14 Detach 15 | . . 1 8 . 3 1 . 2 Swap 87 | 1 3 4 9 1 21 10 2 36 Drop 74 | . 1 . 6 2 37 10 2 16 Fire 613 | 5 45 24 69 30 149 53 35 203 Melee 19 | . . . . . 3 7 . 9 Ram . | . . . . . . . . . Kick . | . . . . . . . . . Crush . | . . . . . . . . . Escape Stasis 6 | . . . . . . 6 . . Rewire 13 | . . . . . . 13 . . Trap 3 | . . . . . . 3 . . Miscellaneous . | . . . . . . . . . Route ------- -11/Scrapyard -10/Materials (discovered 4 exits: *Mat x3 / [*Min]) -10/Mines (discovered 2 exits: *Mat / [*Exi]) -9/Materials (discovered 3 exits: *Mat x2 / *Min) -9/Mines (discovered 3 exits: *Mat x2 / [*Zio]) -8/Materials (discovered 3 exits: *Fac x2 / Gar) -8/Garrison (discovered 3 exits: *Mat x3) -8/Materials (discovered 3 exits: *Fac x3) -7/Factory (discovered 6 exits: [*Fac x3] / [*Sto] / [*Low x2]) History --------- Turn | Location | Event 2 | -11/Scrapyard | Met Revision 17 51 | -11/Scrapyard | Discovered new exit (range 14) 106 | -11/Scrapyard | Entered Materials 305 | -10/Materials | Build established: Mutant 315 | -10/Materials | Discovered new exit (range 14) 361 | -10/Materials | Discovered new exit (range 12) 581 | -10/Materials | Discovered new exit (range 16) 886 | -10/Materials | Discovered new exit (range 16) 1136 | -10/Materials | Entered Mines 1137 | -10/Mines | Assembled infested the area 1372 | -10/Mines | Core integrity fell below 50% 1382 | -10/Mines | Core integrity fell below 20% 1412 | -10/Mines | Lost 3 parts (1p1n1w) 1412 | -10/Mines | Learned location of Storage (-7) 1549 | -10/Mines | Deemed a non-threat by the Exiles lab entrance 1549 | -10/Mines | Discovered new exit (range 5) 1584 | -10/Mines | Received a Rocket Launcher from a helpful Derelict 1637 | -10/Mines | Learned Materials emergency access door positions 2106 | -10/Mines | Discovered new exit (range 7) 2122 | -10/Mines | Entered Materials 2122 | -9/Materials | Evolved 2 slots: Propulsion x1, Utility x1 2996 | -9/Materials | Discovered new exit (range 8) 3304 | -9/Materials | Discovered new exit (range 7) 3612 | -9/Materials | Discovered new exit (range 7) 3818 | -9/Materials | Entered Mines 3950 | -9/Mines | A Derelict revealed a hidden shortcut to a safe place 4197 | -9/Mines | Met a Derelict shopkeep closing up shop 4277 | -9/Mines | Discovered new exit (range 8) 4290 | -9/Mines | Core integrity fell below 50% 4427 | -9/Mines | Discovered new exit (range 12) 4485 | -9/Mines | Excavation squad dispatched 4485 | -9/Mines | A large section of the Mines collapsed 4735 | -9/Mines | Excavation squad dispatched 4985 | -9/Mines | Excavation squad dispatched 5235 | -9/Mines | Excavation squad dispatched 5340 | -9/Mines | Entered Materials 5340 | -8/Materials | Evolved 2 slots: Utility x2 6530 | -8/Materials | Found Prototype Device 6860 | -8/Materials | Build established: Scavenger-Mutant 7223 | -8/Materials | Discovered new exit (range 5) 7384 | -8/Materials | Core integrity fell below 50% 7933 | -8/Materials | Repaired Huge Storage Unit 8166 | -8/Materials | Discovered new exit (range 4) 8571 | -8/Materials | Identified exit to Garrison 8573 | -8/Materials | Entered Garrison 8706 | -8/Garrison | Triggered checkpoint 8782 | -8/Garrison | Garrison Relay disabled 8874 | -8/Garrison | Phase Generator disabled 9143 | -8/Garrison | Triggered checkpoint 9186 | -8/Garrison | Triggered checkpoint 9344 | -8/Garrison | Triggered checkpoint 9426 | -8/Garrison | Discovered new exit (range 9) 9951 | -8/Garrison | Discovered new exit (range 7) 10034 | -8/Garrison | Triggered checkpoint 10138 | -8/Garrison | Triggered checkpoint 10363 | -8/Garrison | Discovered new exit (range 13) 10584 | -8/Garrison | Triggered checkpoint 10672 | -8/Garrison | Installed Relay Interface Framework 10685 | -8/Garrison | Entered Materials 10864 | -8/Materials | Identified exit to Factory 10981 | -8/Materials | Core integrity fell below 20% 11027 | -8/Materials | Lost 4 parts (1p1n2u) 11059 | -8/Materials | Build established: Mutant 11371 | -8/Materials | Entered Factory 11371 | -7/Factory | Evolved 2 slots: Propulsion x1, Utility x1 11684 | -7/Factory | Build established: Scavenger-Mutant 11772 | -7/Factory | Discovered new exit (range 12) 12031 | -7/Factory | Identified Active Sensor Suite 12344 | -7/Factory | Build established: Mutant 12921 | -7/Factory | Discovered new exit (range 6) 13046 | -7/Factory | Discovered new exit (range 15) 13072 | -7/Factory | Discovered new exit (range 15) 13514 | -7/Factory | Garrison activated, responded to threat 13692 | -7/Factory | Lost 6 parts (3n3u) 13991 | -7/Factory | Build established: Scavenger-Mutant 14057 | -7/Factory | Core integrity fell below 50% 14171 | -7/Factory | First assault squad dispatched 14547 | -7/Factory | Discovered new exit (range 9) 14633 | -7/Factory | Lost 3 parts (3n) 14743 | -7/Factory | Lost 5 parts (1p2n2w) 14818 | -7/Factory | Core integrity fell below 20% 14909 | -7/Factory | Lost 4 parts (2n2w) 15332 | -7/Factory | Discovered new exit (range 14) 15333 | -7/Factory | Destroyed by G-47 Trooper with Particle Gun Last Messages --------------- 15137_ Acquired 47 matter. 15144_ G-47 Trooper destroyed. 15145_ Acquired 21 matter. 15148_ G-47 Trooper destroyed. 15175_ System corrupted: Matter fused (-7). 15180_ >> Machine Analyzer network decryption results: 15180_ Terminal x1 15200_ ,T4VYD6SPYF&PXAO3NWT15KCV Z9DLDWVMC 15269_ 0I/Q WKIGTSGVRVUPRX=/451/NKA&,63|LS 15271_ ALERT: Rogue bot located, Programmers report to Factory Zone 2P. 15272_ Acquired Imp. Titanium Leg. 15294_ YM=45#WOERNPF4A/C,Q3N&:Q:T=>#RBSK:V2R2 15299_ Aluminum Leg destroyed. 15303_ G-47 Trooper destroyed. 15313_ A-02 Transporter calls for reinforcements. 15313_ ALERT: Hostile activity reported, dispatching reinforcements to area. 15314_ K-01 Serf collects debris. 15332_ EXIT=FOUND 15333_ Critical hit (Burn: +37). Map ----- +----------------------------------------------------+ | # """ """ #????????????????????????????????? | | # """ """ #????????????????????????????????? | | # """ """ #????????????????????????????????? | | + ? #????????????????????????????????? | | # ?? #????????????????????????????????? | | #########??###????????????????????????????????? | | #?????????????????????????????????????????????? | | #?????????????????????????????????????????????? | | ??????????????????????????????????????????????? | | ??????????????????????????????????????????????? | | ???????????????? ?????????????????????????? | | ??????????????????# #????????????????????????? | | ??????????????????# #????????????????????????? | | ??????????????????# #????????????????????????? | | ??????????????????# #????????????????????????? | | ??????????????????# k #????????????????????????? | | ??????????????????# #????????????????????????? | | ??????????????????# #????????????????????????? | | ??????????????????# #????????????????????????? | | ??????????????????# #????????????????????????? | | ?????????????????# #????????????????????????? | | ################ ###+############?????????? | | ?????????? | | k ????????? | | ! ????????? | | @ % a ????????? | | %[ k ????????? | | ??###########+############= #######???????????? | | ???????# #????? #?????????????????? | | ???????# #????? #?????????????????? | | ???????# #????? #?????????????????? | | ???????# #?????? #?????????????????? | | ???????# #?????? #?????????????????? | | ???????# ! ! #?????? g#?????????????????? | | ???????# #?????? g ?????????????????? | | ???????# #???????! ????????????????? | | ???????# ]#??????? g #?"""?"""???????? | | ???????# #???????Y #?"""?"""???????? | | ???????# #???????< ??"""?"""???????? | | ???????# #???????? ???????????????????? | | ???????##+###########??????????????"""???????????? | | ????????# #????????????????????????"""???"?""????? | | ????????# #????????????????????????"""???"R""????? | | ?"??????# #??????????????????????????????""""????? | | ?"??????# #??????????????????????????????????????? | | ?"??????# #??????????????????????????????????????? | | ?T??????# #??????????????????????????????????????? | | ?"??????# #??????????????????????????????????????? | | #"??????# #??????????????????????????????????????? | | #"??????# #??????????????????????????????????????? | +----------------------------------------------------+ Best States ------------- Heat Dissipation 61 Coolant Potential 65 Energy Generation 17 Energy Capacity 300 Matter Stores 300 Matter Capacity 300 Sight Range 20 Terrain Scan Density 10 Corruption Block 8 Armor Coverage 375 Evasion (%) 40 Targeting Accuracy 11 Recoil Reduction 4 Particle Charging 15 Relay Coupler Types 2 Relay Coupler Value 62 Item Schematics ----------------- None Robot Schematics ------------------ None Fabricated ------------ Nothing Alien Tech Used ----------------- None Achievements -------------- None Challenges ------------ None Game ------ Seed NovaThermalFlamer Manual? 0 Play Time 01:16:47 Cumulative 295.1 hours Start 2022.03.26 @ 16:12:27 End 2022.03.27 @ 13:34:10 Sessions 3 Manual Loads 0 Difficulty Rogue Special Mode None Game No. 444 Rogue 444 Adventurer 0 Explorer 0 Win Type - Total 5 Types 3/0/1/1/0/0/0/0/0 Lore% 79 Gallery% 80 Achievement% 63 Wizard Run 0 Options --------- ASCII 0 Keyboard 1 Movement Numpad Keybinds 0 Fullscreen 2 Font 24/Smallcaps Map View 76x50 Tactical HUD 1 Map Filters NONE Filters NONE Steam 1 RUN: 4d52d901-4de8-4eeb-afa0-69fed66bd6a8